[Event "*** Titled Tuesday 3|2 Blitz"]
[Site "Chess.com"]
[Date "2015.10.06"]
[Round "6"]
[White "armago"]
[Black "chessloveyou"]
[Result "1-0"]
[WhiteElo "2070"]
[BlackElo "2166"]
[TimeControl "180+2"]
[EndTime "12:16:24 PDT"]
[Termination "armago won by checkmate"]

1. d4 {[%clk 0:02:58.5]} 1... Nf6 {[%clk 0:02:58.5]} 2. c4 {[%clk 0:02:59.2]}
2... e6 {[%clk 0:02:58.5]} 3. Nc3 {[%clk 0:02:56.3]} 3... Bb4 {[%clk 0:02:58.7]}
4. e3 {[%clk 0:02:56.8]} 4... O-O {[%clk 0:02:58.4]} 5. Bd3 {[%clk 0:02:57.8]}
5... d5 {[%clk 0:02:59]} 6. a3 {[%clk 0:02:57.3]} 6... Bxc3+ {[%clk 0:02:59.3]}
7. bxc3 {[%clk 0:02:58.5]} 7... b6 {[%clk 0:03:00.2]} 8. cxd5 {[%clk 0:02:53.1]}
8... Qxd5 {[%clk 0:02:57.4]} 9. f3 {[%clk 0:02:53.4]} 9... Ba6 {[%clk 0:02:51]}
10. Bxa6 {[%clk 0:02:49.3]} 10... Nxa6 {[%clk 0:02:51.1]} 11. Qd3 {[%clk
0:02:49.5]} 11... Qb7 {[%clk 0:02:48.1]} 12. Ne2 {[%clk 0:02:48.9]} 12... c5
{[%clk 0:02:48.7]} 13. O-O {[%clk 0:02:49.2]} 13... cxd4 {[%clk 0:02:49.2]} 14.
cxd4 {[%clk 0:02:48.5]} 14... Rfd8 {[%clk 0:02:49.2]} 15. e4 {[%clk 0:02:41.3]}
15... Nc5 {[%clk 0:02:49]} 16. Qc2 {[%clk 0:02:41.8]} 16... Ncd7 {[%clk
0:02:48.6]} 17. Bg5 {[%clk 0:02:36.2]} 17... Rac8 {[%clk 0:02:48.9]} 18. Qb3
{[%clk 0:02:33.2]} 18... h6 {[%clk 0:02:43.6]} 19. Bh4 {[%clk 0:02:33.1]} 19...
e5 {[%clk 0:02:27.7]} 20. dxe5 {[%clk 0:02:24.7]} 20... Nxe5 {[%clk 0:02:28.4]}
21. Bxf6 {[%clk 0:02:24.3]} 21... gxf6 {[%clk 0:02:28.9]} 22. Ng3 {[%clk
0:02:21.5]} 22... Rd2 {[%clk 0:02:09.2]} 23. Rac1 {[%clk 0:02:08.2]} 23... Rcd8
{[%clk 0:01:54.9]} 24. Qe3 {[%clk 0:02:07.1]} 24... Kf8 {[%clk 0:01:09.4]} 25.
Nf5 {[%clk 0:02:03.3]} 25... Ke8 {[%clk 0:01:02.9]} 26. Qxh6 {[%clk 0:01:59.2]}
26... Ng6 {[%clk 0:00:49.4]} 27. Qg7 {[%clk 0:01:50.6]} 27... Qb8 {[%clk
0:00:35.2]} 28. Qxf6 {[%clk 0:01:42.3]} 28... Rxg2+ {[%clk 0:00:33.2]} 29. Kxg2
{[%clk 0:01:36.2]} 29... Rd2+ {[%clk 0:00:33.4]} 30. Rf2 {[%clk 0:01:33.9]}
30... Rxf2+ {[%clk 0:00:34]} 31. Kxf2 {[%clk 0:01:34.1]} 31... Qxh2+ {[%clk
0:00:35.4]} 32. Ke1 {[%clk 0:01:34]} 32... Qg1+ {[%clk 0:00:29.2]} 33. Kd2
{[%clk 0:01:34.7]} 33... Qf2+ {[%clk 0:00:29]} 34. Kc3 {[%clk 0:01:27.7]} 34...
Qxf3+ {[%clk 0:00:29.4]} 35. Kb2 {[%clk 0:01:26.5]} 35... Qe2+ {[%clk
0:00:28.7]} 36. Rc2 {[%clk 0:01:25.2]} 36... Qb5+ {[%clk 0:00:29]} 37. Ka2
{[%clk 0:01:23.8]} 37... Qa4 {[%clk 0:00:26.2]} 38. Rc8+ {[%clk 0:01:17.5]}
38... Kd7 {[%clk 0:00:25.8]} 39. Rd8+ {[%clk 0:01:14.2]} 39... Kc7 {[%clk
0:00:25.1]} 40. Qd6+ {[%clk 0:01:13.9]} 40... Kb7 {[%clk 0:00:25.6]} 41. Qd7+
{[%clk 0:01:10.8]} 41... Qxd7 {[%clk 0:00:23.5]} 42. Rxd7+ {[%clk 0:01:12.3]}
42... Ka6 {[%clk 0:00:24.3]} 43. Rxf7 {[%clk 0:01:13]} 43... Ne5 {[%clk
0:00:26.2]} 44. Re7 {[%clk 0:01:13.6]} 44... Nd3 {[%clk 0:00:26.8]} 45. e5
{[%clk 0:01:13.4]} 45... Kb5 {[%clk 0:00:27.8]} 46. e6 {[%clk 0:01:14.2]} 46...
Kc6 {[%clk 0:00:29.7]} 47. Rd7 {[%clk 0:01:12.6]} 47... Nc5 {[%clk 0:00:29.7]}
48. Rd2 {[%clk 0:01:11.1]} 48... Nxe6 {[%clk 0:00:29.5]} 49. Rd6+ {[%clk
0:01:12.1]} 49... Kc5 {[%clk 0:00:29.4]} 50. Rxe6 {[%clk 0:01:13.2]} 50... Kb5
{[%clk 0:00:30]} 51. Kb3 {[%clk 0:01:13]} 51... a6 {[%clk 0:00:31]} 52. a4+
{[%clk 0:01:12.5]} 52... Ka5 {[%clk 0:00:32]} 53. Nd4 {[%clk 0:01:12.1]} 53...
b5 {[%clk 0:00:30.9]} 54. axb5 {[%clk 0:01:12.3]} 54... axb5 {[%clk 0:00:29.6]}
55. Re5 {[%clk 0:01:13.5]} 55... Kb6 {[%clk 0:00:28.5]} 56. Rxb5+ {[%clk
0:01:14.2]} 56... Ka6 {[%clk 0:00:29.6]} 57. Kb4 {[%clk 0:01:13]} 57... Ka7
{[%clk 0:00:30.2]} 58. Kc5 {[%clk 0:01:12.9]} 58... Ka6 {[%clk 0:00:30.6]} 59.
Rb6+ {[%clk 0:01:05.3]} 59... Ka5 {[%clk 0:00:28.3]} 60. Nc2 {[%clk 0:01:01.7]}
60... Ka4 {[%clk 0:00:11]} 61. Ne3 {[%clk 0:01:00.3]} 61... Ka5 {[%clk
0:00:08.8]} 62. Nc4+ {[%clk 0:00:59.4]} 62... Ka4 {[%clk 0:00:09]} 63. Rb4#
{[%clk 0:01:00.7]} 1-0

[Event "*** Titled Tuesday 3|2 Blitz"]
[Site "Chess.com"]
[Date "2015.10.06"]
[Round "6"]
[White "tac49"]
[Black "Viaje"]
[Result "1-0"]
[WhiteElo "2470"]
[BlackElo "2197"]
[TimeControl "180+2"]
[EndTime "12:16:25 PDT"]
[Termination "tac49 won by resignation"]

1. e4 {[%clk 0:03:01.5]} 1... c5 {[%clk 0:03:00.6]} 2. Nf3 {[%clk 0:03:02]} 2...
d6 {[%clk 0:03:02.2]} 3. d4 {[%clk 0:03:01.9]} 3... cxd4 {[%clk 0:03:04.1]} 4.
Qxd4 {[%clk 0:03:02.1]} 4... a6 {[%clk 0:03:04.3]} 5. Bg5 {[%clk 0:03:01.8]}
5... Nc6 {[%clk 0:03:04.5]} 6. Qd2 {[%clk 0:03:02.7]} 6... h6 {[%clk 0:03:05.7]}
7. Bh4 {[%clk 0:03:03.2]} 7... g5 {[%clk 0:03:07.1]} 8. Bg3 {[%clk 0:03:04.4]}
8... Bg7 {[%clk 0:03:08.7]} 9. Nc3 {[%clk 0:03:05.8]} 9... Nf6 {[%clk
0:03:08.9]} 10. Bc4 {[%clk 0:03:06]} 10... Ng4 {[%clk 0:03:06.3]} 11. h4 {[%clk
0:02:53.9]} 11... gxh4 {[%clk 0:02:34.8]} 12. Rxh4 {[%clk 0:02:37.7]} 12... Nce5
{[%clk 0:02:32.5]} 13. Bb3 {[%clk 0:02:31.6]} 13... Qa5 {[%clk 0:02:28.7]} 14.
O-O-O {[%clk 0:02:26.5]} 14... Be6 {[%clk 0:02:23.1]} 15. Kb1 {[%clk 0:02:25.4]}
15... Rc8 {[%clk 0:02:15.3]} 16. Nxe5 {[%clk 0:01:55.8]} 16... Nxe5 {[%clk
0:02:14]} 17. Nd5 {[%clk 0:01:14]} 17... Qxd2 {[%clk 0:02:10.3]} 18. Rxd2 {[%clk
0:01:15.9]} 18... Nc4 {[%clk 0:02:04.9]} 19. Bxc4 {[%clk 0:01:16.2]} 19... Rxc4
{[%clk 0:02:05.6]} 20. b3 {[%clk 0:01:17.2]} 20... Rc6 {[%clk 0:01:44.1]} 21. c4
{[%clk 0:01:12]} 21... b5 {[%clk 0:01:22]} 22. Nb4 {[%clk 0:00:45.3]} 22... Rb6
{[%clk 0:01:19.8]} 23. Nd5 {[%clk 0:00:45.9]} 23... Rc6 {[%clk 0:01:20.1]} 24.
c5 {[%clk 0:00:40.8]} 24... Rxc5 {[%clk 0:01:13.4]} 25. Nxe7 {[%clk 0:00:35.9]}
25... d5 {[%clk 0:00:58.6]} 26. Nxd5 {[%clk 0:00:34.2]} 26... Bxd5 {[%clk
0:00:52]} 27. Rxd5 {[%clk 0:00:30.3]} 27... Rxd5 {[%clk 0:00:51.7]} 28. exd5
{[%clk 0:00:32.2]} 28... O-O {[%clk 0:00:47.3]} 29. d6 {[%clk 0:00:26.7]} 29...
Rd8 {[%clk 0:00:47.6]} 30. Re4 {[%clk 0:00:26.6]} 30... Bf8 {[%clk 0:00:46.7]}
31. Rd4 {[%clk 0:00:26]} 31... f6 {[%clk 0:00:40.5]} 32. Kc2 {[%clk 0:00:24.5]}
32... Kf7 {[%clk 0:00:41.2]} 33. Kd3 {[%clk 0:00:22.4]} 33... Ke6 {[%clk
0:00:42.2]} 34. Re4+ {[%clk 0:00:21.7]} 34... Kd5 {[%clk 0:00:40.7]} 35. Rh4
{[%clk 0:00:22.4]} 35... Ke6 {[%clk 0:00:37.4]} 36. Ke4 {[%clk 0:00:20.4]} 36...
Bxd6 {[%clk 0:00:31.7]} 37. Bxd6 {[%clk 0:00:21]} 37... Rxd6 {[%clk 0:00:32.7]}
38. Ke3 {[%clk 0:00:22.2]} 38... Rc6 {[%clk 0:00:31.7]} 39. Rxh6 {[%clk
0:00:21.2]} 39... Rc2 {[%clk 0:00:32.4]} 40. g4 {[%clk 0:00:22.2]} 40... Kf7
{[%clk 0:00:24.1]} 41. f3 {[%clk 0:00:15]} 41... Rxa2 {[%clk 0:00:24.1]} 42. Kf4
{[%clk 0:00:15.7]} 42... Kg7 {[%clk 0:00:21.6]} 43. Rh1 {[%clk 0:00:13.3]} 43...
Rb2 {[%clk 0:00:22.9]} 44. Ra1 {[%clk 0:00:13.7]} 44... Rxb3 {[%clk 0:00:24]}
45. Rxa6 {[%clk 0:00:14.9]} 45... Kg6 {[%clk 0:00:22.4]} 46. Rb6 {[%clk
0:00:16.1]} 46... Rb4+ {[%clk 0:00:23.1]} 47. Kg3 {[%clk 0:00:16.9]} 47... Rb1
{[%clk 0:00:24.2]} 48. f4 {[%clk 0:00:17.6]} 48... Rb3+ {[%clk 0:00:23.9]} 49.
Kh4 {[%clk 0:00:18.4]} 49... Kg7 {[%clk 0:00:23.5]} 50. f5 {[%clk 0:00:17.4]}
50... Rb1 {[%clk 0:00:22.9]} 51. Rb7+ {[%clk 0:00:18.6]} 51... Kh6 {[%clk
0:00:21.8]} 52. Rf7 {[%clk 0:00:17.7]} 52... Rh1+ {[%clk 0:00:21.5]} 53. Kg3
{[%clk 0:00:18.6]} 53... Kg5 {[%clk 0:00:21.4]} 54. Rg7+ {[%clk 0:00:18.8]}
54... Kh6 {[%clk 0:00:22.7]} 55. Rg6+ {[%clk 0:00:20.2]} 55... Kh7 {[%clk
0:00:24.3]} 56. Rxf6 {[%clk 0:00:21.7]} 56... b4 {[%clk 0:00:25.9]} 57. Rb6
{[%clk 0:00:22.4]} 57... Rb1 {[%clk 0:00:26.5]} 58. Kf4 {[%clk 0:00:23.4]} 58...
b3 {[%clk 0:00:27.7]} 59. Kg5 {[%clk 0:00:24.1]} 59... Kg7 {[%clk 0:00:27.3]}
60. Rb7+ {[%clk 0:00:25.1]} 60... Kf8 {[%clk 0:00:28.3]} 61. Kg6 {[%clk
0:00:26.4]} 61... b2 {[%clk 0:00:26.3]} 62. g5 {[%clk 0:00:27.4]} 62... Ke8
{[%clk 0:00:16.1]} 63. f6 {[%clk 0:00:28.2]} 1-0

[Event "*** Titled Tuesday 3|2 Blitz"]
[Site "Chess.com"]
[Date "2015.10.06"]
[Round "6"]
[White "kikydu96"]
[Black "dabee"]
[Result "1-0"]
[WhiteElo "2287"]
[BlackElo "2348"]
[TimeControl "180+2"]
[EndTime "12:16:54 PDT"]
[Termination "kikydu96 won on time"]

1. e4 {[%clk 0:03:01.9]} 1... e5 {[%clk 0:02:59.1]} 2. Nf3 {[%clk 0:03:01.3]}
2... Nc6 {[%clk 0:02:59.9]} 3. Nc3 {[%clk 0:03:00.7]} 3... Nf6 {[%clk
0:02:54.5]} 4. d4 {[%clk 0:03:01.2]} 4... exd4 {[%clk 0:02:52.7]} 5. Nxd4 {[%clk
0:03:01.5]} 5... Bb4 {[%clk 0:02:53.7]} 6. Nxc6 {[%clk 0:03:01.3]} 6... bxc6
{[%clk 0:02:53.9]} 7. Bd3 {[%clk 0:03:02.9]} 7... d5 {[%clk 0:02:54.6]} 8. exd5
{[%clk 0:03:04.5]} 8... cxd5 {[%clk 0:02:55.1]} 9. O-O {[%clk 0:03:05.9]} 9...
O-O {[%clk 0:02:55.7]} 10. h3 {[%clk 0:03:05.5]} 10... c6 {[%clk 0:02:50.6]} 11.
Qf3 {[%clk 0:03:06.8]} 11... Bd6 {[%clk 0:02:48.1]} 12. Bf4 {[%clk 0:03:07.8]}
12... Rb8 {[%clk 0:02:44.1]} 13. b3 {[%clk 0:03:05.1]} 13... Bxf4 {[%clk
0:02:38.7]} 14. Qxf4 {[%clk 0:03:05.4]} 14... Be6 {[%clk 0:02:39.5]} 15. Rad1
{[%clk 0:03:03.7]} 15... Qa5 {[%clk 0:02:37.1]} 16. Ne2 {[%clk 0:02:50.4]} 16...
c5 {[%clk 0:02:31.8]} 17. Ng3 {[%clk 0:02:36.6]} 17... Rb4 {[%clk 0:02:25.1]}
18. Qg5 {[%clk 0:02:28.3]} 18... h6 {[%clk 0:02:18.3]} 19. Qd2 {[%clk 0:02:28]}
19... Qxa2 {[%clk 0:02:10.3]} 20. Ne2 {[%clk 0:02:13.2]} 20... Qa5 {[%clk
0:01:57.6]} 21. Nf4 {[%clk 0:02:09.1]} 21... Qb6 {[%clk 0:01:53.9]} 22. Rfe1
{[%clk 0:02:09.8]} 22... a5 {[%clk 0:01:43.7]} 23. Qe3 {[%clk 0:02:08.8]} 23...
d4 {[%clk 0:01:28.2]} 24. Qe5 {[%clk 0:02:00.1]} 24... Re8 {[%clk 0:01:16.2]}
25. Nh5 {[%clk 0:01:35.9]} 25... Nxh5 {[%clk 0:01:08.5]} 26. Qxh5 {[%clk
0:01:37.3]} 26... a4 {[%clk 0:01:09.4]} 27. bxa4 {[%clk 0:01:33.7]} 27... c4
{[%clk 0:01:04.9]} 28. Bf5 {[%clk 0:01:16.8]} 28... Rxa4 {[%clk 0:00:58.6]} 29.
Bxe6 {[%clk 0:00:59.1]} 29... Rxe6 {[%clk 0:00:52.3]} 30. Rxe6 {[%clk
0:00:57.5]} 30... Qxe6 {[%clk 0:00:52.3]} 31. Rxd4 {[%clk 0:00:58]} 31... Qe1+
{[%clk 0:00:50.7]} 32. Kh2 {[%clk 0:00:58.9]} 32... Qxf2 {[%clk 0:00:51.5]} 33.
Qe5 {[%clk 0:00:27.5]} 33... Qxc2 {[%clk 0:00:23.2]} 34. Qe8+ {[%clk 0:00:22.7]}
34... Kh7 {[%clk 0:00:23.8]} 35. Qxf7 {[%clk 0:00:22]} 35... Qg6 {[%clk
0:00:22.7]} 36. Qd7 {[%clk 0:00:15.8]} 36... Rb4 {[%clk 0:00:17.2]} 37. Rg4
{[%clk 0:00:15.7]} 37... Qf6 {[%clk 0:00:17.4]} 38. Qd5 {[%clk 0:00:15]} 38...
Rb6 {[%clk 0:00:09.5]} 39. Qe4+ {[%clk 0:00:11]} 39... Kh8 {[%clk 0:00:08.7]}
40. Qe8+ {[%clk 0:00:09.3]} 40... Kh7 {[%clk 0:00:09.8]} 41. Qe4+ {[%clk
0:00:10.3]} 41... Kg8 {[%clk 0:00:10.4]} 42. Qxc4+ {[%clk 0:00:11.1]} 42... Kh8
{[%clk 0:00:10.1]} 43. Rf4 {[%clk 0:00:10.2]} 43... Qd6 {[%clk 0:00:09.7]} 44.
h4 {[%clk 0:00:08.4]} 44... Rc6 {[%clk 0:00:09.7]} 45. Qe4 {[%clk 0:00:08.6]}
45... Rc8 {[%clk 0:00:08.7]} 46. g3 {[%clk 0:00:08.7]} 46... Qd2+ {[%clk
0:00:07.2]} 47. Kh3 {[%clk 0:00:10]} 47... Qd7+ {[%clk 0:00:07.6]} 48. Qf5
{[%clk 0:00:05.2]} 48... Qc6 {[%clk 0:00:08.6]} 49. h5 {[%clk 0:00:05.5]} 49...
Qh1+ {[%clk 0:00:08.6]} 50. Kg4 {[%clk 0:00:06.9]} 50... Qd1+ {[%clk 0:00:08.1]}
51. Kh4 {[%clk 0:00:06.2]} 51... Qd8+ {[%clk 0:00:07.4]} 52. Kg4 {[%clk
0:00:06]} 52... Ra8 {[%clk 0:00:05.7]} 53. Qf7 {[%clk 0:00:05.6]} 53... Qc8+
{[%clk 0:00:05.5]} 54. Kh4 {[%clk 0:00:05.7]} 54... Qd8+ {[%clk 0:00:05.7]} 55.
Kh3 {[%clk 0:00:06.1]} 55... Qd1 {[%clk 0:00:05.6]} 56. Rf1 {[%clk 0:00:02.4]}
56... Qe2 {[%clk 0:00:04.5]} 57. Kh4 {[%clk 0:00:03.6]} 57... Ra4+ {[%clk
0:00:03.4]} 58. Rf4 {[%clk 0:00:04.2]} 58... Ra8 {[%clk 0:00:02.6]} 59. Rf2
{[%clk 0:00:04.3]} 1-0

[Event "*** Titled Tuesday 3|2 Blitz"]
[Site "Chess.com"]
[Date "2015.10.06"]
[Round "6"]
[White "Mornar1951"]
[Black "lorcho"]
[Result "0-1"]
[WhiteElo "2618"]
[BlackElo "2591"]
[TimeControl "180+2"]
[EndTime "12:18:57 PDT"]
[Termination "lorcho won by resignation"]

1. Nf3 {[%clk 0:03:01.9]} 1... d5 {[%clk 0:02:56.6]} 2. d4 {[%clk 0:03:02.2]}
2... e6 {[%clk 0:02:57.2]} 3. c4 {[%clk 0:03:03.1]} 3... c5 {[%clk 0:02:58.8]}
4. cxd5 {[%clk 0:03:01]} 4... exd5 {[%clk 0:03:00.7]} 5. g3 {[%clk 0:03:01.9]}
5... Nc6 {[%clk 0:03:01.9]} 6. Bg2 {[%clk 0:03:03.5]} 6... Nf6 {[%clk
0:03:03.5]} 7. O-O {[%clk 0:03:05.1]} 7... Be7 {[%clk 0:03:05.2]} 8. Nc3 {[%clk
0:03:05.8]} 8... O-O {[%clk 0:03:06.8]} 9. Bf4 {[%clk 0:02:59.7]} 9... Bf5
{[%clk 0:03:04.3]} 10. Rc1 {[%clk 0:02:56.7]} 10... Re8 {[%clk 0:02:48.1]} 11.
dxc5 {[%clk 0:02:55.8]} 11... Bxc5 {[%clk 0:02:43.4]} 12. Nxd5 {[%clk
0:02:48.4]} 12... Bxf2+ {[%clk 0:02:27.3]} 13. Rxf2 {[%clk 0:02:50.3]} 13...
Nxd5 {[%clk 0:02:27.5]} 14. Bg5 {[%clk 0:02:41.8]} 14... f6 {[%clk 0:02:21.8]}
15. Nd4 {[%clk 0:02:31]} 15... Be4 {[%clk 0:02:16]} 16. Nxc6 {[%clk 0:02:14.9]}
16... bxc6 {[%clk 0:02:16.5]} 17. Bxe4 {[%clk 0:02:05.5]} 17... Rxe4 {[%clk
0:02:18.4]} 18. Qc2 {[%clk 0:02:02]} 18... Qe8 {[%clk 0:02:10.3]} 19. Bd2 {[%clk
0:01:45.7]} 19... Rc8 {[%clk 0:02:11.2]} 20. Qd3 {[%clk 0:01:42.8]} 20... Kh8
{[%clk 0:02:09.4]} 21. Rc4 {[%clk 0:01:40.1]} 21... Rxc4 {[%clk 0:02:01.9]} 22.
Qxc4 {[%clk 0:01:42]} 22... Qe5 {[%clk 0:02:00.2]} 23. e4 {[%clk 0:01:16.8]}
23... Nb6 {[%clk 0:01:56.4]} 24. Qc2 {[%clk 0:01:14.2]} 24... h6 {[%clk
0:01:39.2]} 25. Bc3 {[%clk 0:01:14.5]} 25... Qe6 {[%clk 0:01:40.5]} 26. b3
{[%clk 0:01:02.8]} 26... Re8 {[%clk 0:01:40.5]} 27. Re2 {[%clk 0:01:00.6]} 27...
Nd7 {[%clk 0:01:37.9]} 28. Bd4 {[%clk 0:00:59.3]} 28... c5 {[%clk 0:01:36.6]}
29. Bxc5 {[%clk 0:00:58.7]} 29... Rc8 {[%clk 0:01:36.1]} 30. b4 {[%clk
0:00:59.6]} 30... a5 {[%clk 0:01:36]} 31. a3 {[%clk 0:00:58.8]} 31... axb4
{[%clk 0:01:35.6]} 32. axb4 {[%clk 0:01:00.7]} 32... Qe5 {[%clk 0:01:33.2]} 33.
Qb2 {[%clk 0:00:52.2]} 33... Qh5 {[%clk 0:01:23.3]} 34. Bd4 {[%clk 0:00:47.8]}
34... Qb5 {[%clk 0:01:23.3]} 35. e5 {[%clk 0:00:46.7]} 35... fxe5 {[%clk
0:01:18.8]} 36. Bxe5 {[%clk 0:00:47.8]} 36... Nxe5 {[%clk 0:01:12.6]} 37. Rxe5
{[%clk 0:00:47.7]} 37... Qb6+ {[%clk 0:01:11.7]} 38. Kg2 {[%clk 0:00:46.3]}
38... Qb7+ {[%clk 0:01:10.5]} 39. Kh3 {[%clk 0:00:44.5]} 39... Qd7+ {[%clk
0:01:10.8]} 40. Kg2 {[%clk 0:00:41.3]} 40... Qc6+ {[%clk 0:01:11.7]} 41. Kh3
{[%clk 0:00:39.9]} 41... Qd7+ {[%clk 0:01:12.2]} 42. Kg2 {[%clk 0:00:37.8]}
42... Qa4 {[%clk 0:01:11]} 43. Re2 {[%clk 0:00:28.7]} 43... Qc6+ {[%clk
0:01:11.2]} 44. Kg1 {[%clk 0:00:28.3]} 44... Qb6+ {[%clk 0:01:10.3]} 45. Rf2
{[%clk 0:00:27.7]} 45... Re8 {[%clk 0:01:04.9]} 46. Qd2 {[%clk 0:00:25.8]} 46...
Qc6 {[%clk 0:01:01.7]} 47. h4 {[%clk 0:00:24.4]} 47... Ra8 {[%clk 0:01:00.6]}
48. Kh2 {[%clk 0:00:22.5]} 48... Qe4 {[%clk 0:00:50.1]} 49. Qf4 {[%clk
0:00:22.1]} 49... Qb1 {[%clk 0:00:32.7]} 50. Re2 {[%clk 0:00:22]} 50... Rc8
{[%clk 0:00:23.9]} 51. Qe4 {[%clk 0:00:18.6]} 51... Qb3 {[%clk 0:00:23.3]} 52.
Qg4 {[%clk 0:00:17.6]} 52... Rf8 {[%clk 0:00:18.6]} 53. h5 {[%clk 0:00:17.8]}
53... Qd5 {[%clk 0:00:19]} 54. Rg2 {[%clk 0:00:10.6]} 54... Rf5 {[%clk
0:00:17.7]} 55. Kg1 {[%clk 0:00:07]} 55... Rxh5 {[%clk 0:00:17.9]} 56. Qc8+
{[%clk 0:00:07.2]} 56... Kh7 {[%clk 0:00:16.3]} 57. Qc2+ {[%clk 0:00:08.3]}
57... Kg8 {[%clk 0:00:17.2]} 58. Qc8+ {[%clk 0:00:09]} 58... Kh7 {[%clk
0:00:18]} 59. Qc2+ {[%clk 0:00:10.1]} 59... Kh8 {[%clk 0:00:15.6]} 60. Qc8+
{[%clk 0:00:10.9]} 60... Qg8 {[%clk 0:00:16.9]} 61. Qxg8+ {[%clk 0:00:11.5]}
61... Kxg8 {[%clk 0:00:18.8]} 62. Rb2 {[%clk 0:00:13.1]} 62... Rb5 {[%clk
0:00:18.2]} 63. Kf2 {[%clk 0:00:13.8]} 63... Kf7 {[%clk 0:00:19.7]} 64. Ke3
{[%clk 0:00:15.5]} 64... Ke6 {[%clk 0:00:21]} 65. Kd4 {[%clk 0:00:17.1]} 65...
Kd6 {[%clk 0:00:22.5]} 66. Kc4 {[%clk 0:00:18.4]} 66... Rg5 {[%clk 0:00:23.2]}
67. Rb3 {[%clk 0:00:19.3]} 67... Kc6 {[%clk 0:00:24]} 68. Kd4 {[%clk 0:00:19.9]}
68... Kb5 {[%clk 0:00:24]} 69. Ke4 {[%clk 0:00:21]} 69... Rg4+ {[%clk
0:00:20.9]} 70. Kf5 {[%clk 0:00:21.2]} 70... h5 {[%clk 0:00:21.3]} 71. Rb1
{[%clk 0:00:17.2]} 71... Rxg3 {[%clk 0:00:19.7]} 72. Rh1 {[%clk 0:00:15.1]}
72... g6+ {[%clk 0:00:18]} 73. Kf4 {[%clk 0:00:16.7]} 73... Rg4+ {[%clk
0:00:19.1]} 74. Kf3 {[%clk 0:00:17]} 74... Kxb4 {[%clk 0:00:20.3]} 75. Rc1
{[%clk 0:00:18.7]} 75... Kb5 {[%clk 0:00:21.4]} 76. Rc8 {[%clk 0:00:19.4]} 76...
Rc4 {[%clk 0:00:21.9]} 77. Rg8 {[%clk 0:00:18.3]} 77... Rg4 {[%clk 0:00:20.9]}
78. Rc8 {[%clk 0:00:18.7]} 78... Kb6 {[%clk 0:00:22.2]} 79. Rc1 {[%clk
0:00:16.5]} 79... Rg5 {[%clk 0:00:22.7]} 80. Kf4 {[%clk 0:00:15.6]} 80... Rf5+
{[%clk 0:00:23.9]} 81. Ke4 {[%clk 0:00:16.8]} 81... Rg5 {[%clk 0:00:22.2]} 82.
Kf4 {[%clk 0:00:17.5]} 82... Rg4+ {[%clk 0:00:23.8]} 83. Kf3 {[%clk 0:00:18.3]}
83... Kb7 {[%clk 0:00:25.4]} 84. Rc2 {[%clk 0:00:18.8]} 84... Rg1 {[%clk
0:00:21.7]} 85. Kf4 {[%clk 0:00:18.1]} 85... g5+ {[%clk 0:00:22.1]} 86. Kf5
{[%clk 0:00:19.4]} 86... h4 {[%clk 0:00:23.1]} 87. Rc3 {[%clk 0:00:17.2]} 87...
Rg3 {[%clk 0:00:23.5]} 88. Rc2 {[%clk 0:00:17.6]} 88... h3 {[%clk 0:00:23.9]}
89. Rh2 {[%clk 0:00:18.5]} 89... g4 {[%clk 0:00:25.1]} 90. Kf4 {[%clk
0:00:19.8]} 90... Rg2 {[%clk 0:00:26.1]} 91. Rh1 {[%clk 0:00:21.2]} 91... Kc6
{[%clk 0:00:27.1]} 92. Rd1 {[%clk 0:00:21.8]} 92... Kc5 {[%clk 0:00:28]} 93. Ke4
{[%clk 0:00:20.9]} 93... h2 {[%clk 0:00:27.5]} 94. Rh1 {[%clk 0:00:20.5]} 94...
g3 {[%clk 0:00:27.7]} 95. Kf3 {[%clk 0:00:22.1]} 95... Rg1 {[%clk 0:00:28.7]}
0-1